bitfinex/quotes_ETHUSD_20240820
["timestamp","ask_amount","ask_price","bid_price","bid_amount"]
[1724135476940,4.846763,2683.2,2682.9,0.16923479]
[1724135477147,3.745,2683.0,2682.9,0.16923479]
[1724135477328,3.745,2683.0,2682.6,3.7276]
[1724135477528,3.745,2683.0,2682.9,0.1692366]
[1724135477730,3.72622,2683.7,2682.6,3.7276]
[1724135477731,4.05062,2683.8,2682.6,3.72761]
[1724135477933,3.745,2684.0,2683.4,3.72656]
[1724135478133,3.745,2684.0,2683.5,3.72635]
[1724135478313,3.745,2684.0,2683.5,3.89493762]
[1724135478843,3.745,2684.0,2683.5,0.16858762]
[1724135479515,3.745,2683.7,2683.5,0.16858762]
[1724135480664,3.745,2684.0,2683.6,3.72628]
[1724135480810,3.745,2684.0,2683.8,3.72605]
[1724135481327,3.745,2684.0,2683.9,0.1681163]
[1724135483220,3.745,2684.3,2683.9,0.1681163]
[1724135483446,3.745,2684.3,2684.1,3.72564]
[1724135483951,3.745,2684.3,2684.2,0.16776674]
[1724135484662,3.745,2684.3,2683.9,3.7258]
[1724135484890,4.3291088,2684.6,2684.2,0.16776583]
[1724135485172,4.3291088,2684.6,2684.3,3.72535]
[1724135485377,4.3291088,2684.6,2684.3,3.89300776]
[1724135485526,3.745,2684.6,2684.3,3.89300776]
[1724135485723,3.745,2684.6,2684.3,0.16765776]
[1724135486040,3.745,2684.6,2684.0,3.72572]
[1724135486236,3.745,2684.6,2684.4,0.16753434]
[1724135486535,3.745,2684.6,2683.9,3.7259]
[1724135486536,6.02293,2684.4,2683.9,3.7259]
[1724135486749,3.745,2684.2,2683.9,3.7259]
[1724135487262,0.6745,2685.0,2684.3,3.72534]
[1724135487263,2.4869,2684.7,2684.3,3.72534]
[1724135487436,3.745,2684.6,2684.1,3.72552]
[1724135487767,3.745,2684.6,2684.2,3.72542]
[1724135488465,8.465618,2684.6,2684.1,3.72552]
[1724135489155,2.4869,2684.7,2684.4,3.7252]
[1724135489955,3.745,2684.6,2684.4,3.7252]
[1724135491380,4.39897,2685.0,2684.6,3.72486]
[1724135491381,3.745,2685.0,2684.6,3.72486]
[1724135491586,3.745,2685.0,2684.7,3.72478]
[1724135492849,3.745,2685.0,2684.4,2.4557]
[1724135492850,3.745,2685.3,2684.9,3.72445]
[1724135493166,6.1341,2685.4,2685.1,3.72418]
[1724135493391,3.745,2685.4,2685.1,3.72418]
[1724135493955,3.745,2685.4,2684.9,7.44888]
[1724135494188,3.745,2685.4,2684.9,3.72444]
[1724135494370,3.72545,2684.3,2683.7,3.72607]
[1724135494570,3.72545,2684.3,2683.5,2.3831]
[1724135494571,3.745,2684.0,2683.6,3.7262]
[1724135494948,2.3432,2685.2,2684.6,3.72481]
[1724135495144,0.3745,2685.3,2684.9,3.72445]
[1724135495465,3.745,2685.3,2684.9,7.31994306]
[1724135495654,3.745,2685.3,2685.0,3.72438]
[1724135496384,3.745,2685.3,2684.9,3.7244]
[1724135496559,3.745,2685.3,2685.0,3.72438]
[1724135496970,2.3171,2685.5,2684.7,3.72476]
[1724135497172,3.745,2685.6,2685.2,3.724]
[1724135497491,2.4812,2684.7,2684.0,3.72569]
[1724135497789,3.745,2684.4,2683.8,7.4519]
[1724135497950,3.745,2684.4,2683.9,3.72588]
[1724135498150,3.745,2684.4,2684.0,3.72574]
[1724135498693,3.745,2684.4,2683.8,3.72597]
[1724135498694,3.72407,2685.3,2684.8,3.72457]
[1724135498897,3.72407,2685.3,2684.5,3.72506]
[1724135498898,2.3058,2685.7,2685.6,3.72356]
[1724135499189,2.3058,2686.0,2685.4,3.72372]
[1724135499372,6.02883,2686.0,2685.4,3.72372]
[1724135499753,6.02883,2686.0,2685.4,7.44748]
[1724135499953,3.745,2685.8,2685.4,3.72372]
[1724135500151,3.72433,2685.1,2684.4,4.52144962]
[1724135500349,3.745,2684.8,2684.2,3.72548]
[1724135500584,3.745,2684.8,2684.3,3.72533]
[1724135500884,3.745,2684.8,2684.2,3.72542]
[1724135500885,7.46975,2684.8,2684.2,3.72542]
[1724135501364,3.72482,2684.7,2684.1,3.72551]
[1724135501774,3.72482,2684.7,2684.2,3.72548]
[1724135501979,3.7237,2685.5,2684.7,3.72472]
[1724135502152,3.72391,2685.4,2684.9,3.72453]
[1724135502486,3.72399,2685.3,2684.7,3.72472]
[1724135502847,3.72399,2685.3,2684.7,3.72471]
[1724135503045,3.72422,2685.2,2684.7,3.72471]
[1724135503460,3.72429,2685.1,2684.5,3.72498]
[1724135503661,4.992,2685.5,2685.0,3.7243]
[1724135503861,1.405264,2685.4,2685.0,3.7243]
[1724135504264,1.405264,2685.4,2685.1,0.14550046]
[1724135504866,3.72647,2683.5,2683.4,0.77988858]
[1724135505190,3.72647,2683.5,2683.0,1.93946675]
[1724135505191,2.481,2683.6,2682.6,0.7974084]
[1724135505351,2.481,2683.6,2682.8,3.72731]
[1724135505549,2.481,2683.6,2683.0,3.72716]
[1724135505753,4.992,2683.7,2683.0,3.72716]
[1724135506060,4.992,2683.7,2683.2,3.72689]
[1724135506653,8.71714,2684.5,2683.2,3.72689]
[1724135506654,0.38942356,2685.4,2684.3,2.4606]
[1724135506791,2.431,2685.5,2684.3,2.4606]
[1724135506974,3.72393,2685.4,2684.4,2.06617944]
[1724135507183,2.431,2685.5,2684.4,3.72513]
[1724135507408,8.7156,2685.6,2683.7,1.40617305]
[1724135507409,2.431,2684.4,2683.7,1.40617305]
[1724135507568,6.15635,2684.4,2682.9,1.17013728]
[1724135507765,4.992,2684.5,2683.9,3.72587]
[1724135508002,4.992,2684.5,2683.4,3.72661]
[1724135508206,4.992,2684.5,2683.0,6.18771]
[1724135508207,8.7171,2684.5,2683.9,3.72579]
[1724135508503,4.992,2684.5,2684.0,3.72576]
[1724135508657,4.992,2684.5,2684.0,4.470939]
[1724135509092,6.07997,2685.2,2684.4,3.7252]
[1724135509291,2.3558,2685.2,2684.8,3.72453]
[1724135509494,3.72379,2685.5,2684.8,3.71700204]
[1724135509698,3.72379,2685.5,2684.9,0.07448257]
[1724135509867,0.607959,2685.4,2684.9,0.07448257]
[1724135510273,0.607959,2685.4,2684.9,3.79898257]
[1724135510609,0.607959,2685.4,2684.0,7.470859]
[1724135510610,3.72505,2684.6,2683.5,3.72642]
[1724135510907,3.72505,2684.6,2684.2,3.72541]
[1724135510908,4.992,2684.6,2684.2,3.72541]
[1724135511202,4.992,2684.6,2684.3,3.72532]
[1724135511611,4.992,2684.6,2684.2,3.72541]
[1724135511768,4.992,2684.6,2684.2,7.45083]
[1724135511969,4.992,2684.6,2684.2,3.72541]
[1724135512168,4.992,2684.6,2684.3,3.72533]
[1724135512364,4.992,2684.6,2684.4,0.13194207]
[1724135512618,3.0,2685.3,2684.4,0.13194207]
[1724135512823,8.71585,2685.4,2684.8,3.72454]
[1724135513118,8.71585,2685.4,2684.9,0.13140184]
[1724135513300,0.871585,2685.3,2684.9,0.13140184]
[1724135516158,0.871585,2685.3,2684.6,3.72486]
[1724135516159,3.72422,2685.2,2684.6,3.72486]
[1724135516376,4.992,2685.4,2685.0,3.85559382]
[1724135516508,7.485,2686.0,2685.0,3.72435]
[1724135516713,3.7235,2685.7,2685.1,0.13118581]
[1724135516950,3.72373,2685.5,2685.1,0.13118581]
[1724135517211,3.72373,2685.5,2684.9,3.7245]
[1724135517462,3.7235,2685.7,2685.1,3.72421]
[1724135518012,3.72364,2685.6,2685.2,0.1310778]
[1724135518145,8.71564,2685.6,2685.2,0.1310778]
[1724135518457,3.72371,2685.5,2685.3,0.1309698]
[1724135518855,3.72371,2685.5,2684.9,7.44893]
[1724135519059,4.992,2686.0,2685.4,0.13086181]
[1724135519270,4.992,2686.0,2685.4,3.72375]
[1724135519756,8.715,2686.0,2685.5,0.13075383]
[1724135520258,3.72324,2685.9,2685.5,0.13075383]
[1724135520875,3.72323,2685.9,2685.5,0.13075383]
[1724135521036,4.594903,2685.8,2685.5,0.13075383]
[1724135521239,4.594903,2685.8,2685.2,3.72404]
[1724135521479,4.594903,2685.8,2685.6,0.13056229]
[1724135521693,4.594903,2685.8,2685.2,3.72404]
[1724135521878,4.594903,2685.8,2685.7,0.13045432]
[1724135522058,4.594903,2685.8,2685.2,3.72404]
[1724135522256,0.8318133,2685.7,2685.2,3.72404]
[1724135522769,0.8318133,2685.7,2685.3,3.72395]
[1724135523139,0.8318133,2685.7,2685.3,7.44784]
[1724135523640,0.871523,2685.8,2685.4,3.72373]
[1724135523839,8.71509,2686.0,2685.4,3.72373]
[1724135524248,4.992,2686.0,2685.5,3.72369]
[1724135524445,4.992,2686.0,2685.6,3.72354]
[1724135524671,6.13705,2686.3,2685.6,3.72354]
[1724135524846,3.72288,2686.1,2685.6,3.72354]
[1724135525053,4.171488,2686.0,2685.6,3.72354]
[1724135525239,4.171488,2686.0,2685.4,3.72372]
[1724135525439,4.171488,2686.0,2685.5,3.72367]
[1724135526163,7.894498,2686.0,2685.5,3.72367]
[1724135526474,3.7233,2685.8,2685.3,3.72384]
[1724135526792,0.37233,2685.7,2685.1,7.42064392]
[1724135526949,4.09581,2685.7,2685.2,3.72409]
[1724135527274,4.09581,2685.7,2685.1,11.14480392]
[1724135527483,0.908781,2685.6,2685.3,0.13083198]
[1724135527636,0.908781,2685.6,2685.2,0.13093998]
[1724135527845,0.908781,2685.6,2685.2,3.85500998]
[1724135529273,0.908781,2685.6,2685.3,3.72397]
[1724135529460,0.37233,2685.7,2685.3,3.72397]
[1724135529667,0.37233,2685.7,2685.4,0.13073088]
[1724135530177,3.0,2686.0,2685.4,3.85454088]
[1724135530347,3.0,2686.0,2685.5,3.72361]
[1724135530674,3.0,2686.0,2685.6,0.13051493]
[1724135531940,6.72301,2686.0,2685.6,0.13051493]
[1724135532142,1.044595,2685.9,2685.6,0.13051493]
[1724135534257,1.044595,2685.9,2685.6,3.85398493]
[1724135534701,1.044595,2685.9,2685.6,0.13051493]
[1724135537066,1.044595,2685.9,2685.6,3.85395493]
[1724135537266,1.044595,2685.9,2685.6,0.13051493]
[1724135537505,0.4044595,2685.8,2685.6,0.13051493]
[1724135538203,0.4044595,2685.8,2685.4,3.7238]
[1724135538403,0.4044595,2685.8,2685.5,0.12640481]
[1724135539337,3.72352,2685.7,2685.5,0.12640481]
[1724135539627,3.72352,2685.7,2685.2,3.72404]
[1724135539926,0.41279795,2685.6,2685.3,0.12662416]
[1724135540495,4.15579795,2685.6,2685.3,0.12662416]
[1724135542484,3.743,2686.2,2685.5,2.4261]
[1724135542695,3.743,2686.2,2685.7,3.72334]
[1724135542897,3.0,2686.1,2685.7,3.72334]
[1724135543111,3.0,2686.1,2685.8,0.1260843]
[1724135543299,0.6743,2686.0,2685.7,3.72334]
[1724135543496,0.6743,2686.0,2685.9,0.12597635]
[1724135543696,0.6743,2686.0,2685.7,7.44668]
[1724135543901,0.6743,2686.0,2685.9,0.12597635]
[1724135544100,0.6743,2686.0,2685.8,0.1260843]
[1724135544301,0.6743,2686.0,2685.7,3.72334]
[1724135544302,0.6743,2686.0,2685.7,7.44669]
[1724135544530,0.6743,2686.0,2685.9,0.12597635]
[1724135544824,0.6743,2686.0,2685.7,3.72334]
[1724135545128,0.6743,2686.0,2685.8,0.1260843]
[1724135545502,0.6743,2686.0,2685.7,3.72334]
[1724135545802,0.6743,2686.0,2685.9,0.12597635]
[1724135546011,0.6743,2686.0,2685.8,0.1260843]
[1724135546190,0.6743,2686.0,2685.9,0.12597635]
[1724135547298,0.6743,2686.0,2685.7,3.72334]
[1724135547501,0.6743,2686.0,2685.9,0.12597635]
[1724135548818,0.6743,2686.0,2685.7,3.72334]
[1724135549124,0.6743,2686.0,2685.9,0.12597635]
[1724135549349,0.6743,2686.0,2685.7,3.72334]
[1724135549546,0.6743,2686.0,2685.9,0.12597635]
[1724135549715,0.6743,2686.0,2685.7,3.72334]
[1724135549896,0.6743,2686.0,2685.9,0.12597635]
[1724135550245,0.6743,2686.0,2685.7,3.72334]
[1724135550449,0.6743,2686.0,2685.9,0.12597635]
[1724135550733,0.6743,2686.0,2685.7,3.72334]
[1724135550931,0.6743,2686.0,2685.9,0.12597635]
[1724135551117,0.6743,2686.0,2685.7,3.72334]
[1724135551319,0.6743,2686.0,2685.9,0.12597635]
[1724135551535,0.6743,2686.0,2685.8,0.1260843]
[1724135551716,0.6743,2686.0,2685.9,0.12597635]
[1724135552031,0.6743,2686.0,2685.7,3.72334]
[1724135552195,0.6743,2686.0,2685.8,0.1260843]
[1724135552393,4.39734,2686.0,2685.8,0.1260843]
[1724135552591,6.672534,2685.9,2685.4,3.69649392]
[1724135553021,3.7233,2685.8,2685.4,3.69649392]
[1724135553732,3.72344,2685.7,2685.4,3.69649392]
[1724135555027,3.743,2685.6,2685.4,3.69649392]
[1724135556337,3.743,2685.6,2685.3,3.72396]
[1724135556518,4.48963,2685.6,2685.3,3.72396]
[1724135556918,4.48963,2685.6,2685.4,0.79674121]
[1724135557118,4.48963,2685.6,2685.3,3.72396]
[1724135557325,4.48963,2685.6,2685.4,0.7967409]
[1724135557641,4.48963,2685.6,2685.4,0.12651111]
[1724135557945,0.448963,2685.5,2685.1,3.72419]
[1724135558244,0.448963,2685.5,2685.2,0.79682473]
[1724135558446,4.172673,2685.5,2685.0,7.42079392]
[1724135558642,10.259783,2685.5,2685.1,0.79691297]
[1724135558941,1.1639233,2685.4,2685.0,3.7243]
[1724135559138,1.1639233,2685.4,2685.1,0.79692167]
[1724135559307,1.1639233,2685.4,2685.0,3.7243]
[1724135559507,1.1639233,2685.4,2685.1,0.79696285]
[1724135559734,1.1639233,2685.4,2685.0,3.7243]
[1724135559901,1.1639233,2685.4,2685.1,0.79694935]
[1724135560104,1.1639233,2685.4,2685.2,4.52097261]
[1724135560316,0.448963,2685.5,2685.2,3.72404]
[1724135560516,0.448963,2685.5,2685.2,7.44807]
[1724135560928,0.448963,2685.5,2685.2,3.72403]
[1724135561107,0.448963,2685.5,2685.2,7.44807]
[1724135561309,0.448963,2685.5,2685.2,3.72402]
[1724135561509,0.448963,2685.5,2685.2,7.44804]
[1724135561708,0.448963,2685.5,2685.2,3.72402]
[1724135562741,0.448963,2685.5,2685.3,3.72396]
[1724135564740,3.743,2685.7,2685.3,3.72396]
[1724135566335,3.743,2685.7,2685.2,7.44805]
[1724135566534,3.743,2685.7,2685.2,3.72402]
[1724135566937,3.743,2685.7,2685.2,7.44806]
[1724135568248,3.743,2685.7,2685.3,3.72396]
[1724135568456,0.9779,2685.6,2685.3,3.72396]
[1724135569452,3.743,2685.7,2685.5,3.7237]
[1724135569631,3.743,2685.7,2685.6,3.72356]
[1724135569831,0.439734,2685.9,2685.6,3.72356]
[1724135571050,0.439734,2685.9,2685.7,3.72339]
[1724135572567,0.439734,2685.9,2685.8,0.12609612]
[1724135572862,0.439734,2685.9,2685.7,3.72339]
[1724135573034,0.439734,2685.9,2685.8,0.12609612]
[1724135573234,0.439734,2685.9,2685.7,3.72339]
[1724135573569,0.439734,2685.9,2685.8,0.12609612]
[1724135573741,0.439734,2685.9,2685.7,3.72339]
[1724135573937,0.439734,2685.9,2685.8,0.12609612]
[1724135574156,0.439734,2685.9,2685.7,3.72339]
[1724135574392,0.439734,2685.9,2685.8,0.12609612]
[1724135574532,0.439734,2685.9,2685.7,3.72339]
[1724135574869,0.439734,2685.9,2685.8,3.84937612]
[1724135575031,3.0,2686.0,2685.8,3.84937612]
[1724135575363,3.0,2686.0,2685.9,3.72314]
[1724135575542,3.743,2686.1,2685.9,3.84912817]
[1724135579080,2.3836,2686.5,2686.2,3.72265]
[1724135579381,6.10532,2687.0,2686.5,3.72224]
[1724135579540,2.3836,2687.0,2686.5,3.72222]
[1724135579875,3.72178,2686.9,2686.6,0.12520405]
[1724135580058,4.33444,2686.9,2686.6,0.12520405]
[1724135580236,0.61266,2686.9,2686.5,3.72229]
[1724135580428,0.61266,2686.9,2686.7,0.12505225]
[1724135580674,0.61266,2686.9,2686.6,3.84733013]
[1724135580828,0.299626,2686.8,2686.6,3.72217]
[1724135582474,0.61266,2686.9,2686.6,3.72217]
[1724135582839,0.61266,2686.9,2686.5,7.44445]
[1724135583037,0.61266,2686.9,2686.6,3.72214]
[1724135583577,0.61266,2686.9,2686.5,3.72222]
[1724135583877,3.743,2686.8,2686.5,3.72222]
[1724135584100,0.435566,2686.7,2686.5,3.72222]
[1724135587577,0.435566,2686.7,2686.6,0.12512805]
[1724135588754,0.435566,2686.7,2686.4,3.72245]
[1724135589151,6.449796,2686.7,2686.5,0.12523595]
[1724135589489,12.2066196,2686.6,2686.5,0.12523595]
[1724135589690,3.72259,2686.3,2686.2,3.69649392]
[1724135589851,9.77459,2686.3,2686.2,3.69649392]
[1724135590255,13.49718,2686.3,2686.2,3.69649392]
[1724135590457,14.846898,2686.3,2686.2,3.69649392]
[1724135590956,17.846898,2686.3,2686.2,3.69649392]
[1724135594907,3.72279,2686.2,2685.6,3.72348]
[1724135595197,6.72279,2686.2,2685.6,3.72348]
[1724135597165,3.0,2686.2,2685.8,3.72319]
[1724135597364,4.7847098,2686.2,2685.8,3.72319]
[1724135598174,4.7847098,2686.2,2685.3,6.16072]
[1724135598175,4.7847098,2686.2,2685.7,3.7233]
[1724135598393,4.7847098,2686.2,2685.7,7.44663]
[1724135599063,4.7847098,2686.2,2685.8,3.72326]
[1724135599279,1.45592998,2686.1,2685.8,3.72326]
[1724135600981,3.743,2686.3,2685.8,3.72326]
[1724135601392,3.743,2686.3,2685.8,3.72321]
[1724135601595,3.743,2686.3,2685.9,3.72311]
[1724135602477,3.743,2686.3,2686.0,0.12568601]
[1724135602672,0.74655,2686.2,2686.0,0.12568601]
[1724135602983,0.74655,2686.2,2686.0,3.84859601]
[1724135603183,7.7622796,2686.6,2686.0,0.12568601]
[1724135603501,7.7622796,2686.6,2686.2,3.72266]
[1724135604005,7.7622796,2686.6,2686.3,0.12536224]
[1724135604205,7.7622796,2686.6,2686.2,3.72266]
[1724135604506,7.7622796,2686.6,2686.4,0.12525433]
[1724135604810,1.39217296,2686.5,2686.2,3.72266]
[1724135606306,1.39217296,2686.5,2686.0,3.72287]
[1724135606885,1.39217296,2686.5,2686.1,3.72283]
[1724135607070,1.39217296,2686.5,2685.9,3.72312]
[1724135607271,3.743,2686.3,2685.9,3.72312]
[1724135607477,0.746547,2686.2,2685.8,3.69649392]
[1724135607879,0.746547,2686.2,2685.8,7.41975392]
[1724135608282,0.746547,2686.2,2685.8,3.69649392]
[1724135608489,4.469287,2686.2,2685.8,3.69649392]
[1724135609284,2.3464,2686.1,2685.8,3.69649392]
[1724135609526,0.6815687,2686.0,2685.8,3.69649392]
[1724135609836,2.3464,2686.1,2685.8,3.72327]
[1724135610125,4.469287,2686.2,2685.7,3.72333]
[1724135610287,3.72287,2686.1,2685.7,3.72333]
[1724135610888,0.746547,2686.2,2685.7,3.72333]
[1724135611114,0.746547,2686.2,2685.8,3.72327]
[1724135611324,4.469297,2686.2,2685.7,3.72333]
[1724135611528,1.0563697,2686.1,2685.7,3.72333]
[1724135612804,1.0563697,2686.1,2685.7,4.52056106]
[1724135613007,1.0563697,2686.1,2685.7,3.72333]
[1724135614320,1.0563697,2686.1,2685.7,7.44667]
[1724135614502,0.746547,2686.2,2685.8,3.72324]
[1724135615230,0.746547,2686.2,2685.7,3.72333]
[1724135615231,3.743,2686.3,2685.9,3.72313]
[1724135615433,12.92478,2686.6,2686.0,3.72297]
[1724135616207,12.92478,2686.6,2686.1,3.72278]
[1724135616530,10.46528,2686.6,2686.1,3.72278]
[1724135616728,6.743,2686.6,2686.1,3.72278]
[1724135616928,6.743,2686.6,2686.2,3.72268]
[1724135617536,6.743,2686.6,2686.3,0.12541964]
[1724135617702,8.388982,2686.6,2686.3,0.12541964]
[1724135618031,8.388982,2686.6,2686.4,0.12531173]
[1724135618032,1.645982,2686.6,2686.4,0.12531173]
[1724135618231,7.46504,2686.7,2686.2,3.72268]
[1724135618632,7.46504,2686.7,2686.3,0.12541964]
[1724135618827,7.46504,2686.7,2686.2,3.72268]
[1724135619024,7.46504,2686.7,2686.4,0.12531173]
[1724135619225,7.46504,2686.7,2686.2,3.72268]
[1724135619534,7.46504,2686.7,2686.5,0.12520383]
[1724135619733,9.111022,2686.7,2686.2,3.72268]
[1724135619935,9.111022,2686.7,2686.6,0.12509593]
[1724135620099,12.111022,2686.7,2686.2,3.72268]
[1724135620295,10.46504,2686.7,2686.6,0.12509593]
[1724135620837,10.46504,2686.7,2686.2,3.72268]
[1724135621034,10.46504,2686.7,2686.6,0.12509593]
[1724135621442,3.72219,2686.6,2686.1,3.72278]
[1724135622130,3.743,2686.3,2686.1,3.72278]
[1724135623407,3.743,2686.3,2685.8,7.41977392]
[1724135623765,7.46559,2686.3,2685.9,4.51983292]
[1724135623965,7.46559,2686.3,2685.9,3.72313]
[1724135624308,7.4652,2686.6,2686.1,3.72284]
[1724135624511,7.4652,2686.6,2685.9,4.713955]
[1724135624739,3.743,2686.3,2686.0,0.7966394]
[1724135624947,3.743,2686.3,2685.9,4.713955]
[1724135625252,3.743,2686.3,2685.8,3.7232]
[1724135625545,6.0655,2686.3,2685.8,3.7232]
[1724135625758,9.7882,2686.3,2685.7,3.72331]
[1724135625912,9.7882,2686.3,2685.8,0.79677744]
[1724135626113,6.0655,2686.3,2685.7,3.72331]
[1724135626308,6.0655,2686.3,2685.9,3.72312]
[1724135627153,9.78809,2686.3,2685.9,3.72312]
[1724135627352,9.78809,2686.3,2685.7,3.7233]
[1724135627554,9.78809,2686.3,2685.8,0.79669273]
[1724135627807,9.78809,2686.3,2685.7,7.44664]
[1724135627977,9.78809,2686.3,2685.8,0.79673164]
[1724135628185,9.78809,2686.3,2685.7,3.7233]
[1724135628387,9.78809,2686.3,2685.8,0.79676403]
[1724135628604,9.78809,2686.3,2685.7,7.44665]
[1724135628605,1.559,2685.9,2685.5,11.11296241]
[1724135628818,1.559,2685.6,2685.5,9.90417392]
[1724135628998,1.559,2685.6,2685.5,11.93695132]
[1724135629309,1.559,2685.6,2685.5,10.72816283]
[1724135629535,1.559,2685.6,2685.5,9.93138]
[1724135629805,1.559,2685.6,2685.5,9.53832239]
[1724135630008,1.559,2685.6,2685.5,9.45312979]
[1724135630214,1.559,2685.6,2685.5,10.74737325]
[1724135630491,1.559,2685.6,2685.5,10.74738292]
[1724135630682,1.559,2685.6,2685.5,8.24406181]
[1724135630885,1.559,2685.6,2685.5,9.45312979]
[1724135631073,1.559,2685.6,2685.5,8.24406181]
[1724135631260,1.559,2685.6,2685.5,9.45317217]
[1724135631454,1.559,2685.6,2685.5,8.24406181]
[1724135632354,1.559,2685.6,2685.5,10.87378511]
[1724135632595,1.559,2685.6,2685.5,9.57950044]
[1724135632798,1.559,2685.6,2685.5,10.87378841]
[1724135633202,1.559,2685.6,2685.5,9.66468182]
[1724135633496,1.559,2685.6,2685.5,10.87379419]
[1724135634261,1.559,2685.6,2685.5,8.86790001]
[1724135634463,1.559,2685.6,2685.5,10.87376884]
[1724135634667,1.559,2685.6,2685.5,12.46001858]
[1724135634880,1.559,2685.6,2685.5,14.40138291]
[1724135635101,1.559,2685.6,2685.5,13.19230379]
[1724135635404,1.559,2685.6,2685.5,11.25090845]
[1724135635602,1.559,2685.6,2685.5,0.92311548]
[1724135636000,1.559,2685.6,2685.5,0.12632626]
[1724135636209,1.559,2685.6,2685.1,6.87490845]
[1724135636378,3.72328,2685.8,2685.5,0.12635076]
[1724135636585,3.72328,2685.8,2685.2,5.66574884]
[1724135636787,0.613688,2685.7,2685.6,0.12624279]
[1724135636988,0.613688,2685.7,2685.4,0.79714488]
[1724135637304,0.613688,2685.7,2685.6,0.12625799]
[1724135637621,2.172688,2685.7,2685.6,0.12625799]
[1724135637767,2.172688,2685.7,2685.2,3.72407]
[1724135637966,1.559,2685.4,2685.3,0.79716374]
[1724135638365,1.559,2685.4,2685.3,0.79717807]
[1724135640624,1.52877225,2685.4,2685.3,0.79717807]
[1724135641381,1.52877225,2685.4,2685.2,3.7241]
[1724135641820,1.52877225,2685.4,2685.1,3.72415]
[1724135642035,2.4827,2685.5,2685.2,0.7971561]
[1724135642242,2.4827,2685.5,2685.2,3.72411]
[1724135643810,5.98538,2685.8,2685.3,3.72395]
[1724135644057,1.559,2685.4,2685.3,3.72395]
[1724135644645,1.559,2685.4,2685.1,7.44826]
[1724135644905,5.98538,2685.8,2685.1,7.44826]
[1724135644906,1.559,2685.2,2685.1,3.72411]
[1724135645208,1.559,2685.2,2684.9,4.52152672]
[1724135645408,2.4161,2685.4,2684.9,3.72453]
[1724135645409,1.559,2685.0,2684.9,3.72453]
[1724135645704,2.4161,2685.4,2685.0,3.72432]
[1724135645908,1.559,2685.1,2684.9,7.44898]
[1724135646113,1.559,2685.1,2684.9,3.72445]
[1724135647146,1.559,2685.1,2685.0,3.72439]
[1724135647451,1.559,2685.1,2685.0,3.8513289]
[1724135650039,1.559,2685.1,2685.0,0.1269389]
[1724135652758,1.559,2685.1,2685.0,3.8513289]
[1724135653429,1.559,2685.1,2685.0,0.1269389]
[1724135665854,3.72356,2685.6,2685.0,2.3769389]
[1724135666170,1.559,2685.1,2685.0,6.1013289]
[1724135666352,1.559,2685.1,2685.0,10.62242463]
[1724135667872,1.559,2685.1,2685.0,10.62227023]
[1724135671549,1.559,2685.1,2685.0,9.8257189]
[1724135671747,1.559,2685.1,2685.0,10.62214734]
[1724135672203,1.559,2685.1,2685.0,10.62212707]
[1724135672367,1.559,2685.1,2685.0,4.64773707]
[1724135673450,1.559,2685.1,2685.0,8.37212707]
[1724135673967,1.559,2685.1,2685.0,4.64773707]
[1724135674365,1.559,2685.1,2685.0,5.27630059]
[1724135675981,1.559,2685.1,2685.0,4.64773707]
[1724135679447,2.3446,2685.4,2685.0,4.64773707]
[1724135679724,3.72375,2685.5,2685.1,0.79640817]
[1724135679916,3.72375,2685.5,2685.2,0.79640817]
[1724135680194,3.72375,2685.5,2685.2,0.12682933]
[1724135680566,3.72375,2685.5,2685.0,3.72438]
[1724135680752,3.72375,2685.5,2685.3,0.12672133]
[1724135680953,1.559,2685.4,2685.0,3.72438]
[1724135681149,1.559,2685.2,2685.1,0.7966263]
[1724135681353,1.559,2685.2,2685.1,0.92356364]
[1724135683881,1.559,2685.2,2685.1,0.12693734]
[1724135684088,1.559,2685.2,2685.1,0.92361047]
[1724135684321,1.559,2685.2,2685.1,0.12693734]
[1724135684486,1.559,2685.2,2685.1,0.92357132]
[1724135691938,1.559,2685.2,2685.1,0.92342365]
[1724135695700,1.559,2685.2,2685.1,0.92330969]
[1724135697432,1.559,2685.2,2685.1,0.92327094]
[1724135699803,1.559,2685.2,2685.1,0.12693734]
[1724135700111,1.559,2685.2,2685.1,0.92310305]
[1724135702505,4.0484,2685.2,2685.1,0.92310305]
[1724135704638,8.549737,2685.2,2685.1,0.92310305]
[1724135704862,11.49662,2685.2,2685.1,0.12693734]
[1724135705346,3.72446,2685.0,2684.5,3.72505]
[1724135705527,1.559,2684.7,2684.6,0.796592]
[1724135706339,1.559,2684.7,2684.5,3.72505]
[1724135706612,1.559,2684.7,2684.6,0.79661227]
[1724135707610,1.559,2684.7,2684.6,0.92412102]
[1724135708112,3.8652,2684.7,2684.6,0.12750875]
[1724135708453,3.8652,2684.7,2684.2,3.7255]
[1724135708454,7.59001,2684.7,2684.2,3.7255]
[1724135708746,7.59001,2684.7,2684.3,0.79675186]
[1724135708747,6.03101,2684.7,2684.3,0.79675186]
[1724135708923,9.75591,2684.7,2684.3,0.12786338]
[1724135709125,1.559,2684.4,2684.1,3.69649392]
[1724135709322,6.10926,2684.3,2684.2,0.12797145]
[1724135709538,2.3839,2684.3,2684.2,0.12797145]
[1724135709718,2.3839,2684.3,2683.9,5.66846288]
[1724135709938,1.559,2684.0,2683.9,5.66849365]
[1724135710248,1.559,2684.0,2683.9,10.08891926]
[1724135710555,1.559,2684.0,2683.9,7.76042292]
[1724135710775,1.559,2684.0,2683.9,5.81776927]
[1724135711120,1.559,2684.0,2683.9,13.80384292]
[1724135711315,1.559,2684.2,2684.1,3.72564]